[Event "*** Titled Tuesday Blitz"]
[Site "Chess.com"]
[Date "2020.01.07"]
[Round "1"]
[White "Alexander_Donchenko"]
[Black "karwowskikacper"]
[Result "0-1"]
[WhiteElo "2745"]
[BlackElo "2414"]
[TimeControl "180+2"]
[EndTime "13:13:10 PST"]
[Termination "karwowskikacper won by resignation"]

1. e4 {[%clk 0:03:01.9]} 1... c5 {[%clk 0:02:58.3]} 2. Nf3 {[%clk 0:03:02.6]}
2... Nc6 {[%clk 0:02:59.5]} 3. Bb5 {[%clk 0:03:03.1]} 3... e6 {[%clk 0:03:00.1]}
4. O-O {[%clk 0:03:03.2]} 4... Nge7 {[%clk 0:02:57.5]} 5. Re1 {[%clk 0:03:04]}
5... g6 {[%clk 0:02:58.1]} 6. c3 {[%clk 0:03:04.5]} 6... Bg7 {[%clk 0:02:56.9]}
7. d4 {[%clk 0:03:05.5]} 7... cxd4 {[%clk 0:02:58.8]} 8. cxd4 {[%clk 0:03:06.7]}
8... d5 {[%clk 0:03:00.7]} 9. e5 {[%clk 0:03:07.5]} 9... O-O {[%clk 0:03:01.1]}
10. Bg5 {[%clk 0:03:00.7]} 10... Qb6 {[%clk 0:02:57.7]} 11. Nc3 {[%clk
0:02:58.7]} 11... a6 {[%clk 0:02:54.4]} 12. Bxc6 {[%clk 0:02:55.8]} 12... Nxc6
{[%clk 0:02:54.6]} 13. Qd2 {[%clk 0:02:56.5]} 13... Bd7 {[%clk 0:02:49.3]} 14.
Na4 {[%clk 0:02:42.7]} 14... Qa5 {[%clk 0:02:36.3]} 15. Nc5 {[%clk 0:02:41.3]}
15... Qxd2 {[%clk 0:02:26.9]} 16. Bxd2 {[%clk 0:02:42]} 16... Bc8 {[%clk
0:02:20.7]} 17. Rac1 {[%clk 0:02:42.6]} 17... Rd8 {[%clk 0:02:16.9]} 18. b4
{[%clk 0:02:33.7]} 18... Bf8 {[%clk 0:02:12.5]} 19. h4 {[%clk 0:02:34]} 19...
Na7 {[%clk 0:01:34.1]} 20. Na4 {[%clk 0:01:51.9]} 20... Bd7 {[%clk 0:01:13.2]}
21. Nb6 {[%clk 0:01:52.2]} 21... Rab8 {[%clk 0:01:14.6]} 22. Rc7 {[%clk
0:01:35.7]} 22... Bc6 {[%clk 0:00:56.1]} 23. a4 {[%clk 0:01:36.3]} 23... Nc8
{[%clk 0:00:40.5]} 24. a5 {[%clk 0:01:13.1]} 24... Nxb6 {[%clk 0:00:40.1]} 25.
axb6 {[%clk 0:01:14]} 25... Rbc8 {[%clk 0:00:37.9]} 26. Rxc8 {[%clk 0:00:25.6]}
26... Rxc8 {[%clk 0:00:39.8]} 27. Rc1 {[%clk 0:00:25.8]} 27... Be7 {[%clk
0:00:23.3]} 28. Ne1 {[%clk 0:00:11.3]} 28... Bd8 {[%clk 0:00:24.2]} 29. Nd3
{[%clk 0:00:12.1]} 29... Bxb6 {[%clk 0:00:25.4]} 30. Nc5 {[%clk 0:00:13.4]}
30... Bxc5 {[%clk 0:00:20.5]} 31. bxc5 {[%clk 0:00:13]} 31... Bb5 {[%clk
0:00:20.9]} 32. Ba5 {[%clk 0:00:12.7]} 32... f5 {[%clk 0:00:21.3]} 33. Kh2
{[%clk 0:00:10.7]} 33... Kf7 {[%clk 0:00:22.2]} 34. Kg3 {[%clk 0:00:11.9]} 34...
Rg8 {[%clk 0:00:22.4]} 35. Bd2 {[%clk 0:00:12.6]} 35... Rh8 {[%clk 0:00:22.4]}
36. Bh6 {[%clk 0:00:13.1]} 36... Rc8 {[%clk 0:00:22.6]} 37. Ra1 {[%clk
0:00:13.8]} 37... Ra8 {[%clk 0:00:22.7]} 38. Bd2 {[%clk 0:00:10.3]} 38... Kg7
{[%clk 0:00:23.8]} 39. Kf4 {[%clk 0:00:10.4]} 39... h6 {[%clk 0:00:24.9]} 40. f3
{[%clk 0:00:11]} 40... Kh7 {[%clk 0:00:26.1]} 41. Kg3 {[%clk 0:00:12]} 41... Rg8
{[%clk 0:00:27.3]} 42. Kf2 {[%clk 0:00:11.4]} 42... g5 {[%clk 0:00:27.5]} 43.
Rh1 {[%clk 0:00:10.1]} 43... Kg6 {[%clk 0:00:28.2]} 44. hxg5 {[%clk 0:00:10.2]}
44... hxg5 {[%clk 0:00:30.1]} 45. g4 {[%clk 0:00:08.4]} 45... fxg4 {[%clk
0:00:30.5]} 46. fxg4 {[%clk 0:00:10.3]} 46... Rf8+ {[%clk 0:00:31.2]} 47. Kg3
{[%clk 0:00:11.4]} 47... Be2 {[%clk 0:00:31.4]} 48. Rh5 {[%clk 0:00:11.2]} 48...
Rf3+ {[%clk 0:00:32.4]} 49. Kg2 {[%clk 0:00:12.6]} 49... Rd3 {[%clk 0:00:33.6]}
50. Rxg5+ {[%clk 0:00:13.9]} 50... Kf7 {[%clk 0:00:34.9]} 51. Bc1 {[%clk
0:00:11.4]} 51... Rxd4 {[%clk 0:00:36.1]} 52. Rh5 {[%clk 0:00:11.6]} 52... Rxg4+
{[%clk 0:00:36.4]} 53. Kf2 {[%clk 0:00:13]} 53... Rg2+ {[%clk 0:00:20.6]} 54.
Kxg2 {[%clk 0:00:14.2]} 54... Bxh5 {[%clk 0:00:22.5]} 55. Kf2 {[%clk 0:00:15.6]}
55... Ke7 {[%clk 0:00:23.8]} 56. Ke3 {[%clk 0:00:14.8]} 56... Kd7 {[%clk
0:00:25.2]} 57. Kd4 {[%clk 0:00:13.7]} 57... Kc6 {[%clk 0:00:26.5]} 58. Bd2
{[%clk 0:00:10.2]} 58... Kb5 {[%clk 0:00:27.6]} 59. Bc3 {[%clk 0:00:11.4]} 59...
a5 {[%clk 0:00:28.4]} 60. Bb2 {[%clk 0:00:08.2]} 60... Bg6 {[%clk 0:00:26.4]}
61. Bc1 {[%clk 0:00:08.3]} 61... Kb4 {[%clk 0:00:24.3]} 62. Bd2+ {[%clk
0:00:09.3]} 62... Ka4 {[%clk 0:00:25.4]} 63. Bc3 {[%clk 0:00:10.5]} 63... Kb5
{[%clk 0:00:25.7]} 64. Bb2 {[%clk 0:00:11.7]} 64... a4 {[%clk 0:00:24.2]} 65.
Ba3 {[%clk 0:00:13]} 65... Bc2 {[%clk 0:00:25]} 66. Kc3 {[%clk 0:00:14.1]} 66...
Bb3 {[%clk 0:00:25]} 67. Kd4 {[%clk 0:00:15.6]} 67... Kc6 {[%clk 0:00:25.9]} 68.
Kc3 {[%clk 0:00:16.5]} 68... Kd7 {[%clk 0:00:21.4]} 69. Bb2 {[%clk 0:00:14]}
69... b5 {[%clk 0:00:21.3]} 70. cxb6 {[%clk 0:00:13.8]} 70... Kc6 {[%clk
0:00:22.7]} 71. Kd4 {[%clk 0:00:14.1]} 71... Kxb6 {[%clk 0:00:23]} 72. Ba3
{[%clk 0:00:15.7]} 72... Kb5 {[%clk 0:00:24.4]} 73. Kc3 {[%clk 0:00:15.9]} 73...
Bd1 {[%clk 0:00:23.2]} 74. Kd4 {[%clk 0:00:16.9]} 74... Bg4 {[%clk 0:00:24.2]}
75. Kc3 {[%clk 0:00:17.7]} 75... Kc6 {[%clk 0:00:21.4]} 76. Kd4 {[%clk
0:00:18.7]} 76... Bd1 {[%clk 0:00:22.5]} 77. Ke3 {[%clk 0:00:17.8]} 77... Kd7
{[%clk 0:00:23.3]} 78. Kf4 {[%clk 0:00:18.5]} 78... Bb3 {[%clk 0:00:24]} 79. Ke3
{[%clk 0:00:17.7]} 79... Ke8 {[%clk 0:00:25.2]} 80. Bc5 {[%clk 0:00:11.6]} 80...
Kf7 {[%clk 0:00:25.8]} 81. Kf4 {[%clk 0:00:12.8]} 81... Kg6 {[%clk 0:00:27]} 82.
Bd6 {[%clk 0:00:11.4]} 82... Kh5 {[%clk 0:00:27]} 83. Be7 {[%clk 0:00:12.4]}
83... Bc2 {[%clk 0:00:27.2]} 84. Bc5 {[%clk 0:00:09]} 84... Kh4 {[%clk 0:00:28]}
85. Ke3 {[%clk 0:00:04.3]} 85... Kg4 {[%clk 0:00:28.2]} 86. Kd4 {[%clk
0:00:05.4]} 86... Kf3 {[%clk 0:00:28.4]} 87. Bb4 {[%clk 0:00:05.8]} 87... Bb3
{[%clk 0:00:27.4]} 88. Ba3 {[%clk 0:00:06.3]} 88... Ke2 {[%clk 0:00:27.6]} 89.
Bb4 {[%clk 0:00:04.7]} 89... Kd1 {[%clk 0:00:27.5]} 90. Kc3 {[%clk 0:00:05.9]}
90... Kc1 {[%clk 0:00:22.4]} 91. Ba3+ {[%clk 0:00:06.9]} 91... Kb1 {[%clk
0:00:23.4]} 92. Bb4 {[%clk 0:00:07.8]} 92... Ka2 {[%clk 0:00:23.5]} 93. Bc5
{[%clk 0:00:08.8]} 93... Bc4 {[%clk 0:00:15.5]} 94. Bb4 {[%clk 0:00:07.7]} 94...
Bb5 {[%clk 0:00:15.5]} 95. Bc5 {[%clk 0:00:08.4]} 95... Be8 {[%clk 0:00:16.4]}
96. Kc2 {[%clk 0:00:07.7]} 96... a3 {[%clk 0:00:15.5]} 97. Kc3 {[%clk
0:00:08.1]} 97... d4+ {[%clk 0:00:15.5]} 98. Bxd4 {[%clk 0:00:04.3]} 98... Kb1
{[%clk 0:00:15.1]} 99. Kb4 {[%clk 0:00:05.6]} 99... a2 {[%clk 0:00:16.4]} 100.
Kc5 {[%clk 0:00:07]} 100... Bg6 {[%clk 0:00:17.4]} 101. Kd6 {[%clk 0:00:07.6]}
101... Bf5 {[%clk 0:00:18.8]} 0-1

[Event "*** Titled Tuesday Blitz"]
[Site "Chess.com"]
[Date "2020.01.07"]
[Round "1"]
[White "lucasran"]
[Black "Er_is_geen_hoop_meer"]
[Result "1/2-1/2"]
[WhiteElo "2663"]
[BlackElo "2351"]
[TimeControl "180+2"]
[EndTime "13:14:48 PST"]
[Termination "Game drawn by 50-move rule"]

1. Nf3 {[%clk 0:03:01.8]} 1... f5 {[%clk 0:02:59.2]} 2. c4 {[%clk 0:03:00.6]}
2... Nf6 {[%clk 0:02:59.5]} 3. g3 {[%clk 0:03:01.4]} 3... e6 {[%clk 0:03:00.7]}
4. Bg2 {[%clk 0:03:02.4]} 4... Be7 {[%clk 0:03:02.3]} 5. O-O {[%clk 0:03:03.5]}
5... O-O {[%clk 0:03:04]} 6. Nc3 {[%clk 0:03:04.4]} 6... d6 {[%clk 0:03:03.5]}
7. d4 {[%clk 0:03:04.8]} 7... Ne4 {[%clk 0:03:04.6]} 8. Qc2 {[%clk 0:03:03.1]}
8... Nxc3 {[%clk 0:03:05.6]} 9. Qxc3 {[%clk 0:03:04.8]} 9... a5 {[%clk
0:03:06.4]} 10. b3 {[%clk 0:03:03.5]} 10... Nc6 {[%clk 0:03:08]} 11. Bb2 {[%clk
0:03:04.2]} 11... Bf6 {[%clk 0:03:09.5]} 12. Rad1 {[%clk 0:02:59.3]} 12... Qe7
{[%clk 0:03:10.4]} 13. Rfe1 {[%clk 0:02:58.9]} 13... e5 {[%clk 0:03:11.5]} 14.
dxe5 {[%clk 0:02:40]} 14... dxe5 {[%clk 0:03:13.4]} 15. Qc1 {[%clk 0:02:37.2]}
15... e4 {[%clk 0:03:12.7]} 16. Nd4 {[%clk 0:02:31.6]} 16... Ne5 {[%clk
0:03:08.9]} 17. Nb5 {[%clk 0:02:24.1]} 17... Qf7 {[%clk 0:02:59.1]} 18. Qa1
{[%clk 0:02:21.3]} 18... Re8 {[%clk 0:02:59.8]} 19. a4 {[%clk 0:02:12.2]} 19...
h5 {[%clk 0:02:57.3]} 20. Rd5 {[%clk 0:02:07.7]} 20... Ng4 {[%clk 0:02:48.2]}
21. Red1 {[%clk 0:01:40.6]} 21... Be6 {[%clk 0:02:45.7]} 22. Rc5 {[%clk
0:01:21.7]} 22... Rac8 {[%clk 0:02:46.6]} 23. Bxf6 {[%clk 0:01:18.7]} 23... Nxf6
{[%clk 0:02:46.4]} 24. Nd4 {[%clk 0:01:05]} 24... Bd7 {[%clk 0:02:46.4]} 25.
Rxa5 {[%clk 0:00:47.2]} 25... b6 {[%clk 0:02:46.8]} 26. Ra7 {[%clk 0:00:47.2]}
26... e3 {[%clk 0:02:39.6]} 27. f3 {[%clk 0:00:47.9]} 27... f4 {[%clk 0:02:40]}
28. a5 {[%clk 0:00:45.6]} 28... fxg3 {[%clk 0:02:40.5]} 29. hxg3 {[%clk
0:00:46.3]} 29... h4 {[%clk 0:02:41]} 30. g4 {[%clk 0:00:46.7]} 30... Nxg4
{[%clk 0:02:40.3]} 31. fxg4 {[%clk 0:00:41.7]} 31... Qf2+ {[%clk 0:02:42.2]} 32.
Kh1 {[%clk 0:00:41.2]} 32... h3 {[%clk 0:02:41.9]} 33. Bf3 {[%clk 0:00:31.6]}
33... Bxg4 {[%clk 0:02:41.5]} 34. Rg1 {[%clk 0:00:26.9]} 34... Bxf3+ {[%clk
0:02:38.3]} 35. Nxf3 {[%clk 0:00:27.5]} 35... Re7 {[%clk 0:02:39.4]} 36. Qf1
{[%clk 0:00:27.6]} 36... bxa5 {[%clk 0:02:36.5]} 37. Rxa5 {[%clk 0:00:26.7]}
37... Rb8 {[%clk 0:02:36.9]} 38. Rb5 {[%clk 0:00:25]} 38... Ra8 {[%clk
0:02:36.5]} 39. Qxf2 {[%clk 0:00:16.9]} 39... exf2 {[%clk 0:02:38.4]} 40. Rf1
{[%clk 0:00:18.1]} 40... Rxe2 {[%clk 0:02:39.8]} 41. Rf5 {[%clk 0:00:13.4]}
41... Ra3 {[%clk 0:02:35.3]} 42. Nd4 {[%clk 0:00:14.1]} 42... Rd2 {[%clk
0:02:32.6]} 43. Ne6 {[%clk 0:00:12.3]} 43... Ra6 {[%clk 0:02:33.7]} 44. Nc5
{[%clk 0:00:11.3]} 44... Rc6 {[%clk 0:02:28.5]} 45. Ne4 {[%clk 0:00:12.5]} 45...
Rd3 {[%clk 0:02:30]} 46. Nxf2 {[%clk 0:00:13.3]} 46... Rxb3 {[%clk 0:02:31]} 47.
Rg1 {[%clk 0:00:13.5]} 47... Re3 {[%clk 0:02:23.5]} 48. Rfg5 {[%clk 0:00:14.6]}
48... Re7 {[%clk 0:02:24.9]} 49. R1g4 {[%clk 0:00:15.7]} 49... Rf6 {[%clk
0:02:24.7]} 50. Nxh3 {[%clk 0:00:16.6]} 50... Ra6 {[%clk 0:02:23.7]} 51. Kh2
{[%clk 0:00:17.2]} 51... Ra3 {[%clk 0:02:23.8]} 52. Rg3 {[%clk 0:00:17.2]} 52...
Ra2+ {[%clk 0:02:24.7]} 53. Rg2 {[%clk 0:00:18.5]} 53... Ra3 {[%clk 0:02:26]}
54. R5g3 {[%clk 0:00:19.3]} 54... Ra4 {[%clk 0:02:27.6]} 55. Rg4 {[%clk
0:00:20.8]} 55... Ra3 {[%clk 0:02:29.2]} 56. Ng5 {[%clk 0:00:21.5]} 56... Rc3
{[%clk 0:02:30.3]} 57. Rf2 {[%clk 0:00:16.4]} 57... c5 {[%clk 0:02:28.8]} 58.
Rgf4 {[%clk 0:00:17.6]} 58... g6 {[%clk 0:02:29.6]} 59. Rf8+ {[%clk 0:00:18.6]}
59... Kg7 {[%clk 0:02:31.1]} 60. R8f4 {[%clk 0:00:14]} 60... Kh6 {[%clk
0:02:31.3]} 61. Nf3 {[%clk 0:00:14.2]} 61... g5 {[%clk 0:02:29.6]} 62. Rg4
{[%clk 0:00:15.6]} 62... Rf7 {[%clk 0:02:29.1]} 63. Kg2 {[%clk 0:00:14.9]} 63...
Rf5 {[%clk 0:02:30.2]} 64. Kg3 {[%clk 0:00:12.2]} 64... Kh5 {[%clk 0:02:29.1]}
65. Rh2+ {[%clk 0:00:12.4]} 65... Kg6 {[%clk 0:02:30.5]} 66. Rf2 {[%clk
0:00:14.3]} 66... Kh5 {[%clk 0:02:28.9]} 67. Re4 {[%clk 0:00:15.3]} 67... Kg6
{[%clk 0:02:22.9]} 68. Kg4 {[%clk 0:00:15.1]} 68... Rf6 {[%clk 0:02:18.8]} 69.
Ne5+ {[%clk 0:00:15]} 69... Kg7 {[%clk 0:02:20.3]} 70. Rxf6 {[%clk 0:00:13.7]}
70... Kxf6 {[%clk 0:02:22.2]} 71. Nf3 {[%clk 0:00:14.8]} 71... Rc1 {[%clk
0:02:19.9]} 72. Kg3 {[%clk 0:00:12.9]} 72... Rc3 {[%clk 0:02:15.5]} 73. Kf2
{[%clk 0:00:13.1]} 73... Kf5 {[%clk 0:02:15.3]} 74. Re3 {[%clk 0:00:10.5]} 74...
Rxc4 {[%clk 0:02:15]} 75. Ke2 {[%clk 0:00:08.4]} 75... Kf4 {[%clk 0:02:15.3]}
76. Nd2 {[%clk 0:00:07.4]} 76... Rd4 {[%clk 0:02:14.6]} 77. Rf3+ {[%clk
0:00:07.6]} 77... Ke5 {[%clk 0:02:15.8]} 78. Rc3 {[%clk 0:00:09.2]} 78... Kd5
{[%clk 0:02:15.4]} 79. Rg3 {[%clk 0:00:09.1]} 79... g4 {[%clk 0:02:16.1]} 80.
Nf1 {[%clk 0:00:07.1]} 80... Rf4 {[%clk 0:02:17]} 81. Ne3+ {[%clk 0:00:07.7]}
81... Ke4 {[%clk 0:02:18.2]} 82. Nxg4 {[%clk 0:00:09]} 82... c4 {[%clk
0:02:18.4]} 83. Nf2+ {[%clk 0:00:10.1]} 83... Kd4 {[%clk 0:02:19.4]} 84. Nd1
{[%clk 0:00:11.3]} 84... Rh4 {[%clk 0:02:19.9]} 85. Kd2 {[%clk 0:00:12.3]} 85...
Rh2+ {[%clk 0:02:21]} 86. Kc1 {[%clk 0:00:13.7]} 86... Kc5 {[%clk 0:02:22.4]}
87. Nc3 {[%clk 0:00:10.6]} 87... Rh1+ {[%clk 0:02:23.3]} 88. Kd2 {[%clk
0:00:10.7]} 88... Rh2+ {[%clk 0:02:25.2]} 89. Ne2 {[%clk 0:00:12]} 89... Kb4
{[%clk 0:02:25.7]} 90. Rg4 {[%clk 0:00:13.3]} 90... Rf2 {[%clk 0:02:26.1]} 91.
Ke3 {[%clk 0:00:14.4]} 91... Rh2 {[%clk 0:02:27.1]} 92. Rg8 {[%clk 0:00:15.4]}
92... Rh3+ {[%clk 0:02:27]} 93. Kd2 {[%clk 0:00:16.5]} 93... Rd3+ {[%clk
0:02:26.3]} 94. Kc2 {[%clk 0:00:17.6]} 94... Re3 {[%clk 0:02:27.8]} 95. Rb8+
{[%clk 0:00:18.6]} 95... Kc5 {[%clk 0:02:29.2]} 96. Nc3 {[%clk 0:00:19]} 96...
Rh3 {[%clk 0:02:28.7]} 97. Rc8+ {[%clk 0:00:20.4]} 97... Kb4 {[%clk 0:02:28.2]}
98. Nd5+ {[%clk 0:00:21.7]} 98... Kb5 {[%clk 0:02:28.9]} 99. Nc3+ {[%clk
0:00:22.4]} 99... Kb4 {[%clk 0:02:30]} 100. Rb8+ {[%clk 0:00:23.9]} 100... Kc5
{[%clk 0:02:30.9]} 101. Ne4+ {[%clk 0:00:25.3]} 101... Kd4 {[%clk 0:02:31.7]}
102. Nd2 {[%clk 0:00:25.9]} 102... c3 {[%clk 0:02:31.5]} 103. Rd8+ {[%clk
0:00:25.8]} 103... Kc5 {[%clk 0:02:31]} 104. Ne4+ {[%clk 0:00:27]} 104... Kb4
{[%clk 0:02:29.8]} 105. Rb8+ {[%clk 0:00:27.8]} 105... Kc4 {[%clk 0:02:30.7]}
106. Rc8+ {[%clk 0:00:28.8]} 106... Kd4 {[%clk 0:02:32.1]} 107. Nxc3 {[%clk
0:00:30]} 107... Rh2+ {[%clk 0:02:33]} 108. Kb3 {[%clk 0:00:31.1]} 108... Rh3
{[%clk 0:02:34.3]} 109. Rc4+ {[%clk 0:00:31.9]} 109... Ke5 {[%clk 0:02:35.2]}
110. Kb4 {[%clk 0:00:33.3]} 110... Rd3 {[%clk 0:02:35]} 111. Re4+ {[%clk
0:00:33.3]} 111... Kf5 {[%clk 0:02:36.4]} 112. Re1 {[%clk 0:00:33.5]} 112... Rd8
{[%clk 0:02:37]} 113. Kc4 {[%clk 0:00:33.9]} 113... Kf4 {[%clk 0:02:35.9]} 114.
Nd5+ {[%clk 0:00:34.8]} 114... Kf3 {[%clk 0:02:37.2]} 115. Kd4 {[%clk
0:00:35.5]} 115... Ra8 {[%clk 0:02:36.9]} 116. Re3+ {[%clk 0:00:35.7]} 116...
Kf2 {[%clk 0:02:37.9]} 117. Re6 {[%clk 0:00:36.5]} 117... Ra4+ {[%clk
0:02:38.7]} 118. Kd3 {[%clk 0:00:36.9]} 118... Ra3+ {[%clk 0:02:39.8]} 119. Nc3
{[%clk 0:00:38]} 119... Kg3 {[%clk 0:02:40.5]} 120. Rf6 {[%clk 0:00:38.3]}
120... Kg4 {[%clk 0:02:41.6]} 121. Rf1 {[%clk 0:00:37.4]} 121... Kg5 {[%clk
0:02:42.8]} 122. Kd4 {[%clk 0:00:38.3]} 122... Kg6 {[%clk 0:02:42.9]} 123. Nd5
{[%clk 0:00:33.5]} 123... Ra2 {[%clk 0:02:44.1]} 124. Ke5 {[%clk 0:00:32.5]}
124... Re2+ {[%clk 0:02:44.7]} 125. Kd6 {[%clk 0:00:33.7]} 125... Rd2 {[%clk
0:02:45.8]} 126. Kc5 {[%clk 0:00:31.2]} 126... Kg5 {[%clk 0:02:46.2]} 127. Nc3
{[%clk 0:00:31.3]} 127... Kg4 {[%clk 0:02:46.8]} 128. Kc4 {[%clk 0:00:31.2]}
128... Rd8 {[%clk 0:02:47.3]} 129. Ne4 {[%clk 0:00:32]} 129... Kh3 {[%clk
0:02:44.7]} 130. Rg1 {[%clk 0:00:32.3]} 130... Kh2 {[%clk 0:02:46.1]} 131. Rg7
{[%clk 0:00:32.8]} 131... Kh3 {[%clk 0:02:47.2]} 132. Ng5+ {[%clk 0:00:31.4]}
132... Kh4 {[%clk 0:02:46.4]} 133. Ne6 {[%clk 0:00:32.2]} 133... Rd1 {[%clk
0:02:46.6]} 134. Nd4 {[%clk 0:00:33.2]} 134... Kh5 {[%clk 0:02:47.9]} 135. Kd5
{[%clk 0:00:34.3]} 135... Kh6 {[%clk 0:02:49.2]} 136. Rg2 {[%clk 0:00:35.1]}
136... Kh5 {[%clk 0:02:49.5]} 137. Ke5 {[%clk 0:00:33.6]} 137... Re1+ {[%clk
0:02:49.4]} 138. Kf4 {[%clk 0:00:34.4]} 138... Kh6 {[%clk 0:02:49.2]} 139. Nf5+
{[%clk 0:00:33.8]} 139... Kh7 {[%clk 0:02:50.5]} 140. Rg7+ {[%clk 0:00:32.8]}
140... Kh8 {[%clk 0:02:51]} 141. Rg4 {[%clk 0:00:33.8]} 141... Re8 {[%clk
0:02:47.3]} 142. Rg6 {[%clk 0:00:32.1]} 142... Kh7 {[%clk 0:02:47.5]} 143. Rh6+
{[%clk 0:00:29.5]} 143... Kg8 {[%clk 0:02:48.4]} 144. Kg5 {[%clk 0:00:30.5]}
144... Ra8 {[%clk 0:02:46.4]} 145. Rf6 {[%clk 0:00:20.2]} 145... Ra1 {[%clk
0:02:31.8]} 146. Ne3 {[%clk 0:00:13.2]} 146... Rg1+ {[%clk 0:02:28.7]} 147. Ng4
{[%clk 0:00:13.9]} 147... Rg2 {[%clk 0:02:30]} 148. Kh5 {[%clk 0:00:14.2]}
148... Kg7 {[%clk 0:02:28.2]} 149. Ra6 {[%clk 0:00:13]} 149... Rg1 {[%clk
0:02:27.7]} 150. Kg5 {[%clk 0:00:14]} 150... Kf7 {[%clk 0:02:26.8]} 151. Kf5
{[%clk 0:00:12]} 151... Ke7 {[%clk 0:02:27]} 152. Ne5 {[%clk 0:00:11.8]} 152...
Rf1+ {[%clk 0:02:28.1]} 153. Ke4 {[%clk 0:00:12.9]} 153... Re1+ {[%clk
0:02:29.4]} 154. Kd4 {[%clk 0:00:13.6]} 154... Rd1+ {[%clk 0:02:30.3]} 155. Nd3
{[%clk 0:00:14]} 155... Kf7 {[%clk 0:02:31.5]} 156. Ke4 {[%clk 0:00:14.2]}
156... Kg7 {[%clk 0:02:30.1]} 157. Nf4 {[%clk 0:00:13]} 1/2-1/2

[Event "*** Titled Tuesday Blitz"]
[Site "Chess.com"]
[Date "2020.01.07"]
[Round "2"]
[White "VeraNebolsina"]
[Black "Zubrrr"]
[Result "0-1"]
[WhiteElo "2350"]
[BlackElo "2750"]
[TimeControl "180+2"]
[EndTime "13:21:27 PST"]
[Termination "Zubrrr won by resignation"]

1. e4 {[%clk 0:03:01.9]} 1... c5 {[%clk 0:02:44.2]} 2. Nc3 {[%clk 0:03:00.9]}
2... d6 {[%clk 0:02:44.5]} 3. Bc4 {[%clk 0:02:58.7]} 3... e6 {[%clk 0:02:44.4]}
4. d3 {[%clk 0:02:56.3]} 4... a6 {[%clk 0:02:43.2]} 5. a3 {[%clk 0:02:55.8]}
5... b5 {[%clk 0:02:41.1]} 6. Ba2 {[%clk 0:02:56.9]} 6... Nf6 {[%clk 0:02:40.7]}
7. Nf3 {[%clk 0:02:56.8]} 7... Bb7 {[%clk 0:02:41.2]} 8. O-O {[%clk 0:02:57.6]}
8... Nbd7 {[%clk 0:02:40.8]} 9. Ne2 {[%clk 0:02:51.3]} 9... Qc7 {[%clk
0:02:36.8]} 10. c3 {[%clk 0:02:47.5]} 10... d5 {[%clk 0:02:27.6]} 11. exd5
{[%clk 0:02:35.4]} 11... Nxd5 {[%clk 0:02:27.1]} 12. Ng3 {[%clk 0:02:30.2]}
12... Be7 {[%clk 0:02:16]} 13. Ng5 {[%clk 0:02:14.9]} 13... h6 {[%clk 0:01:51]}
14. Qh5 {[%clk 0:02:13]} 14... g6 {[%clk 0:01:49.7]} 15. Qh4 {[%clk 0:02:00.2]}
15... O-O-O {[%clk 0:01:31.5]} 0-1

[Event "*** Titled Tuesday Blitz"]
[Site "Chess.com"]
[Date "2020.01.07"]
[Round "2"]
[White "NTBT_DHS"]
[Black "Parhamov"]
[Result "0-1"]
[WhiteElo "2633"]
[BlackElo "3067"]
[TimeControl "180+2"]
[EndTime "13:21:28 PST"]
[Termination "Parhamov won by resignation"]

1. d4 {[%clk 0:03:01.9]} 1... d5 {[%clk 0:03:00.4]} 2. Nc3 {[%clk 0:03:03.2]}
2... Bf5 {[%clk 0:02:59.1]} 3. Bg5 {[%clk 0:03:03.5]} 3... h6 {[%clk 0:02:58.6]}
4. Bh4 {[%clk 0:03:04]} 4... a6 {[%clk 0:03:00]} 5. f3 {[%clk 0:03:04.8]} 5...
Nf6 {[%clk 0:03:00.5]} 6. e3 {[%clk 0:03:00.3]} 6... e6 {[%clk 0:03:01.4]} 7.
Bd3 {[%clk 0:03:01.2]} 7... Bxd3 {[%clk 0:03:02]} 8. cxd3 {[%clk 0:03:03.1]}
8... c5 {[%clk 0:03:01.5]} 9. Nge2 {[%clk 0:03:03.8]} 9... Nc6 {[%clk
0:03:01.8]} 10. dxc5 {[%clk 0:03:02.1]} 10... Bxc5 {[%clk 0:03:03.7]} 11. d4
{[%clk 0:03:03.3]} 11... Be7 {[%clk 0:03:03.9]} 12. O-O {[%clk 0:03:04]} 12...
O-O {[%clk 0:02:52.4]} 13. Rc1 {[%clk 0:03:02.3]} 13... Rc8 {[%clk 0:02:53.5]}
14. Qd3 {[%clk 0:02:58.6]} 14... Ne8 {[%clk 0:02:48.1]} 15. Bxe7 {[%clk
0:02:56.1]} 15... Qxe7 {[%clk 0:02:46.6]} 16. e4 {[%clk 0:02:56.5]} 16... Nf6
{[%clk 0:02:43.5]} 17. e5 {[%clk 0:02:53.4]} 17... Ne8 {[%clk 0:02:42.7]} 18. f4
{[%clk 0:02:53.9]} 18... g6 {[%clk 0:02:44]} 19. Rf3 {[%clk 0:02:53.2]} 19...
Ng7 {[%clk 0:02:44.6]} 20. Rh3 {[%clk 0:02:52.8]} 20... h5 {[%clk 0:02:45.8]}
21. Rf1 {[%clk 0:02:47.1]} 21... Qb4 {[%clk 0:02:45.2]} 22. Nd1 {[%clk
0:02:43.6]} 22... Nf5 {[%clk 0:02:42.2]} 23. Ne3 {[%clk 0:02:40.5]} 23... Ncxd4
{[%clk 0:02:42.3]} 24. Nxd4 {[%clk 0:02:38]} 24... Qxd4 {[%clk 0:02:43]} 25.
Qxd4 {[%clk 0:02:31.8]} 25... Nxd4 {[%clk 0:02:44.3]} 26. Kh1 {[%clk 0:02:28]}
26... Kg7 {[%clk 0:02:42.4]} 27. g4 {[%clk 0:02:28]} 27... hxg4 {[%clk
0:02:43.4]} 28. Nxg4 {[%clk 0:02:29.9]} 28... Rh8 {[%clk 0:02:43.7]} 29. Rd3
{[%clk 0:02:30.5]} 29... Nf5 {[%clk 0:02:41.2]} 30. Rf2 {[%clk 0:02:17.2]} 30...
Rc1+ {[%clk 0:02:36.2]} 31. Kg2 {[%clk 0:02:17.9]} 31... Nh4+ {[%clk 0:02:37.1]}
32. Kh3 {[%clk 0:02:01.9]} 32... Rg1 {[%clk 0:02:39]} 0-1

[Event "*** Titled Tuesday Blitz"]
[Site "Chess.com"]
[Date "2020.01.07"]
[Round "2"]
[White "Heineccius"]
[Black "semchik73"]
[Result "1-0"]
[WhiteElo "2658"]
[BlackElo "2333"]
[TimeControl "180+2"]
[EndTime "13:21:35 PST"]
[Termination "Heineccius won by resignation"]

1. d4 {[%clk 0:03:01.9]} 1... d5 {[%clk 0:03:00.8]} 2. c4 {[%clk 0:03:02]} 2...
c6 {[%clk 0:03:01.8]} 3. Nf3 {[%clk 0:03:02.6]} 3... Nf6 {[%clk 0:03:03.1]} 4.
e3 {[%clk 0:03:03.6]} 4... g6 {[%clk 0:03:03.6]} 5. Bd3 {[%clk 0:03:00.8]} 5...
Bg7 {[%clk 0:03:04.8]} 6. O-O {[%clk 0:03:01.5]} 6... O-O {[%clk 0:03:05.9]} 7.
b3 {[%clk 0:03:02]} 7... Bg4 {[%clk 0:03:04.2]} 8. Nbd2 {[%clk 0:03:00.7]} 8...
Nbd7 {[%clk 0:03:04]} 9. Bb2 {[%clk 0:03:00.9]} 9... Re8 {[%clk 0:02:47.1]} 10.
h3 {[%clk 0:02:59.8]} 10... Bxf3 {[%clk 0:02:47.2]} 11. Nxf3 {[%clk 0:03:01.3]}
11... Ne4 {[%clk 0:02:44]} 12. Bxe4 {[%clk 0:02:07.7]} 12... dxe4 {[%clk
0:02:44.6]} 13. Ng5 {[%clk 0:02:00.4]} 13... Nf6 {[%clk 0:02:44.9]} 14. Qc2
{[%clk 0:01:56.8]} 14... e5 {[%clk 0:02:37.5]} 15. dxe5 {[%clk 0:01:50.6]} 15...
Nd7 {[%clk 0:02:37.4]} 16. Nxe4 {[%clk 0:01:46.9]} 16... Nxe5 {[%clk 0:02:38]}
17. Rad1 {[%clk 0:01:45]} 17... Qh4 {[%clk 0:02:37.4]} 18. Nd6 {[%clk
0:01:42.5]} 18... Re6 {[%clk 0:02:30.5]} 19. f4 {[%clk 0:01:33.9]} 19... Nd7
{[%clk 0:02:23.3]} 20. Bxg7 {[%clk 0:01:33.7]} 20... Kxg7 {[%clk 0:02:23.8]} 21.
f5 {[%clk 0:01:18.3]} 21... Rxe3 {[%clk 0:02:22.4]} 22. fxg6 {[%clk 0:01:16.7]}
22... Ne5 {[%clk 0:02:18.4]} 23. Nf5+ {[%clk 0:01:16.7]} 1-0